fUST/lending_fUST_20250305
["ID","MTS","AMOUNT","RATE_DAILY","PERIOD"]
[355418146,1741126246321,-500.0,0.00024658,2]
[355418147,1741126246331,-500.0,0.00024658,2]
[355418148,1741126246340,-442.27610832,0.00024658,2]
[355418151,1741127036314,4725.56,0.00016,10]
[355418152,1741127314660,2182.96702835,0.00015,4]
[355418217,1741127432570,-2125.01447109,0.000189,2]
[355418218,1741127432581,-300.0,0.00019021,2]
[355418219,1741127432592,-946.58965893,0.00019022,2]
[355418220,1741127432602,-500.0,0.00019022,2]
[355418221,1741127432611,-500.0,0.00019022,2]
[355418222,1741127432624,-500.0,0.00019022,2]
[355418223,1741127432634,-501.89757263,0.00019022,2]
[355418225,1741127432644,-500.0,0.00019022,2]
[355418227,1741127432655,-500.0,0.00019022,2]
[355418228,1741127432665,-500.0,0.00019022,2]
[355418229,1741127432676,-500.0,0.00019022,2]
[355418230,1741127432686,-500.0,0.00019022,2]
[355418231,1741127432697,-500.0,0.00019022,2]
[355418232,1741127432707,-515.97191568,0.00019022,2]
[355418233,1741127432718,-541.223797,0.00020695,2]
[355418234,1741127432728,-631.3871992,0.00020713,2]
[355418235,1741127432737,-420.0,0.00020732,2]
[355418236,1741127432748,-24900.0,0.00021532,2]
[355418237,1741127432758,-473.31935996,0.00021748,2]
[355418238,1741127432767,-250.0,0.00021921,2]
[355418239,1741127432778,-166.66666668,0.00022151,2]
[355418240,1741127432788,-5325.22989452,0.00022251,2]
[355418241,1741127432798,-241.93215887,0.00022276,2]
[355418242,1741127432809,-200.0,0.0002231,2]
[355418243,1741127432819,-10000.0,0.00022351,2]
[355418244,1741127432828,-166.66666666,0.00022376,2]
[355418245,1741127432838,-587.0,0.00022598,2]
[355418246,1741127432848,-166.66666666,0.000226,2]
[355418247,1741127432858,-241.93215886,0.00022764,2]
[355418248,1741127432869,-465.415968,0.00022836,2]
[355418249,1741127432881,-768.82688105,0.000229,3]
[355418250,1741127432891,-2370.15954171,0.00023252,2]
[355418251,1741127432900,-241.93215886,0.00023252,2]
[355418252,1741127432910,-7614.23629086,0.00023302,2]
[355418253,1741127432919,-156.76,0.00023316,3]
[355418254,1741127432929,-470.33,0.00023316,3]
[355418255,1741127432939,-151.0,0.00023319,2]
[355418256,1741127432950,-800.0,0.00023319,2]
[355418257,1741127432960,-864.0,0.00023319,2]
[355418258,1741127432970,-933.12,0.00023319,2]
[355418259,1741127432980,-1007.7696,0.00023319,2]
[355418260,1741127432990,-1600.0,0.00023319,2]
[355418261,1741127432999,-274.59724042,0.00023319,2]
[355418262,1741127433010,-500.0,0.00023325,2]
[355418263,1741127433019,-500.0,0.00023326,2]
[355418264,1741127433029,-500.0,0.00023326,2]
[355418265,1741127433039,-500.0,0.00023326,2]
[355418266,1741127433050,-1498.43509438,0.00023326,2]
[355418267,1741127433060,-500.0,0.00023326,2]
[355418268,1741127433070,-500.0,0.00023326,2]
[355418269,1741127433080,-500.0,0.00023326,2]
[355418270,1741127433090,-1498.43509438,0.00023326,2]
[355418271,1741127433100,-500.0,0.00023326,2]
[355418272,1741127433110,-500.0,0.00023326,2]
[355418273,1741127433119,-238.6536226,0.00023326,2]
[355418274,1741127433130,-1498.43509438,0.00023326,2]
[355418275,1741127433140,-500.0,0.00023326,2]
[355418276,1741127433150,-500.0,0.00023326,2]
[355418277,1741127433160,-1498.43509438,0.00023326,2]
[355418278,1741127433170,-500.0,0.00023326,2]
[355418279,1741127433184,-500.0,0.00023326,2]
[355418280,1741127433194,-500.0,0.00023326,2]
[355418281,1741127433205,-1498.43509438,0.00023326,2]
[355418282,1741127433215,-578.05899358,0.00023326,2]
[355418283,1741127433225,-500.0,0.00023326,2]
[355418284,1741127433235,-500.0,0.00023326,2]
[355418285,1741127433248,-1498.43509438,0.00023326,2]
[355418286,1741127433260,-500.0,0.00023326,2]
[355418287,1741127433270,-1498.43509438,0.00023326,2]
[355418288,1741127433280,-500.0,0.00023326,2]
[355418289,1741127433290,-1498.43509438,0.00023326,2]
[355418290,1741127433300,-500.0,0.00023326,2]
[355418291,1741127433311,-1498.43509438,0.00023326,2]
[355418292,1741127433320,-500.0,0.00023326,2]
[355418293,1741127433330,-500.0,0.00023326,2]
[355418294,1741127433340,-1498.43509438,0.00023326,2]
[355418295,1741127433350,-500.0,0.00023326,2]
[355418296,1741127433361,-1498.43509438,0.00023326,2]
[355418297,1741127433373,-1498.43509438,0.00023326,2]
[355418298,1741127433383,-500.0,0.00023326,2]
[355418299,1741127433393,-1498.43509438,0.00023326,2]
[355418300,1741127433403,-500.0,0.00023326,2]
[355418301,1741127433414,-1498.43509438,0.00023326,2]
[355418302,1741127433424,-1498.43509438,0.00023326,2]
[355418303,1741127433434,-1498.43509438,0.00023326,2]
[355418304,1741127433444,-1498.43509438,0.00023326,2]
[355418305,1741127433454,-1498.43509438,0.00023326,2]
[355418306,1741127433464,-1498.43509438,0.00023326,2]
[355418307,1741127433473,-1498.43509438,0.00023326,2]
[355418308,1741127433483,-1498.43509438,0.00023326,2]
[355418309,1741127433493,-1498.43509438,0.00023326,2]
[355418310,1741127433503,-1498.43509438,0.00023326,2]
[355418311,1741127433513,-1498.43509438,0.00023326,2]
[355418312,1741127433524,-1498.43509438,0.00023326,2]
[355418313,1741127433534,-1498.43509438,0.00023326,2]
[355418314,1741127433543,-1498.43509438,0.00023326,2]
[355418315,1741127433553,-1498.43509438,0.00023326,2]
[355418316,1741127433563,-1498.43509438,0.00023326,2]
[355418317,1741127433573,-1498.43509438,0.00023326,2]
[355418318,1741127433583,-1498.43509438,0.00023326,2]
[355418319,1741127433593,-1498.43509438,0.00023326,2]
[355418320,1741127433603,-1498.43509438,0.00023326,2]
[355418321,1741127433613,-1498.43509438,0.00023326,2]
[355418322,1741127433623,-1498.43509438,0.00023326,2]
[355418323,1741127433633,-1498.43509438,0.00023326,2]
[355418324,1741127433643,-1498.43509438,0.00023326,2]
[355418325,1741127433654,-1498.43509438,0.00023326,2]
[355418326,1741127433664,-1498.43509438,0.00023326,2]
[355418327,1741127433674,-1498.43509438,0.00023326,2]
[355418328,1741127433685,-500.0,0.00023326,2]
[355418329,1741127433695,-157.29250402,0.00023326,2]
[355418330,1741127433705,-3062.80143425,0.00023326,2]
[355418331,1741127433715,-3062.80143425,0.00023326,2]
[355418332,1741127433725,-3062.80143425,0.00023326,2]
[355418333,1741127433738,-3062.80143425,0.00023326,2]
[355418334,1741127433753,-3062.80143425,0.00023326,2]
[355418335,1741127433770,-3062.80143425,0.00023326,2]
[355418336,1741127433783,-3062.80143425,0.00023326,2]
[355418337,1741127433797,-3062.80143425,0.00023326,2]
[355418338,1741127433812,-3062.80143425,0.00023326,2]
[355418339,1741127433827,-3062.80143425,0.00023326,2]
[355418340,1741127433841,-3062.80143425,0.00023326,2]
[355418341,1741127433857,-3062.80143425,0.00023326,2]
[355418342,1741127433873,-3062.80143425,0.00023326,2]
[355418343,1741127433886,-3062.80143425,0.00023326,2]
[355418344,1741127433901,-3062.80143425,0.00023326,2]
[355418345,1741127433914,-3062.80143425,0.00023326,2]
[355418346,1741127433932,-3062.80143425,0.00023326,2]
[355418347,1741127433945,-3062.80143425,0.00023326,2]
[355418348,1741127433957,-3062.80143425,0.00023326,2]
[355418349,1741127433970,-3062.80143425,0.00023326,2]
[355418350,1741127433982,-3062.80143425,0.00023326,2]
[355418351,1741127433997,-3062.80143425,0.00023326,2]
[355418352,1741127434012,-3062.80143425,0.00023326,2]
[355418353,1741127434029,-3062.80143425,0.00023326,2]
[355418354,1741127434044,-3006.87201675,0.00023326,2]
[355418355,1741127434058,-3006.87201675,0.00023326,2]
[355418356,1741127434070,-3006.87201675,0.00023326,2]
[355418357,1741127434081,-3006.87201675,0.00023326,2]
[355418358,1741127434096,-3006.87201675,0.00023326,2]
[355418359,1741127434111,-3006.87201675,0.00023326,2]
[355418360,1741127434125,-3006.87201675,0.00023326,2]
[355418361,1741127434137,-3006.87201675,0.00023326,2]
[355418362,1741127434151,-3006.87201675,0.00023326,2]
[355418363,1741127434166,-3006.87201675,0.00023326,2]
[355418364,1741127434178,-3006.87201675,0.00023326,2]
[355418365,1741127434190,-3006.87201675,0.00023326,2]
[355418366,1741127434203,-3006.87201675,0.00023326,2]
[355418367,1741127434216,-481.04222548,0.00023326,2]
[355418368,1741127435658,-500.0,0.00023325,2]
[355418369,1741127435670,-348.20284031,0.00023325,2]
[355418370,1741127435681,-313.41355986,0.00023326,2]
[355418502,1741127443975,-155.23,0.00023316,2]
[355418503,1741127443986,-155.23,0.00023316,2]
[355418504,1741127443996,-155.23,0.00023316,2]
[355418505,1741127444006,-155.23,0.00023316,2]
[355418506,1741127444016,-155.23,0.00023316,2]
[355418507,1741127444026,-155.23,0.00023316,2]
[355418508,1741127444035,-155.23,0.00023316,2]
[355418509,1741127444044,-155.23,0.00023316,2]
[355418510,1741127444054,-500.0,0.00023325,2]
[355418511,1741127444063,-500.0,0.00023325,2]
[355418512,1741127444073,-500.0,0.00023325,2]
[355418513,1741127444083,-500.0,0.00023325,2]
[355418514,1741127444092,-503.89601684,0.00023325,2]
[355418515,1741127444102,-500.0,0.00023325,2]
[355418516,1741127444112,-500.0,0.00023325,2]
[355418517,1741127444121,-4589.79782434,0.00023333,5]
[355418518,1741127444131,-12570.70912182,0.00023333,5]
[355418533,1741127446434,-32326.61275591,0.00023333,5]
[355418535,1741127446443,-2699.78722409,0.00023333,2]
[355418544,1741128405155,-429.05520423,0.00021233,2]
[355418579,1741128633093,-500.0,0.00019022,2]
[355418580,1741128633103,-500.0,0.00019022,2]
[355418581,1741128633114,-172.2,0.00019022,2]
[355418583,1741128633249,-327.8,0.00019022,2]
[355418585,1741128633259,-500.0,0.00019022,2]
[355418587,1741128633269,-500.0,0.00019022,2]
[355418589,1741128633279,-500.0,0.00019022,2]
[355418591,1741128633290,-1273.65791265,0.00019133,2]
[355418593,1741128633300,-161.78,0.0002099,2]
[355418595,1741128633311,-657.78543,0.00020999,2]
[355418597,1741128633320,-65000.0,0.00021,2]
[355418599,1741128633330,-24900.0,0.0002196,2]
[355418601,1741128633340,-250.0,0.00022091,2]
[355418603,1741128633350,-200.0,0.00022308,2]
[355418605,1741128633360,-10000.0,0.00022333,2]
[355418607,1741128633370,-4754.07223515,0.000228,2]
[355418609,1741128633380,-537.957892,0.00023233,2]
[355418611,1741128633391,-1972.81754964,0.00023243,2]
[355418614,1741128633402,-1500.0,0.000233,5]
[355418616,1741128633412,-397.5621104,0.00023314,2]
[355418618,1741128633421,-500.0,0.00023314,2]
[355418620,1741128633431,-500.0,0.00023314,2]
[355418621,1741128633440,-500.0,0.00023314,2]
[355418624,1741128633451,-500.0,0.00023314,2]
[355418626,1741128633461,-500.0,0.00023314,2]
[355418628,1741128633471,-273.86536226,0.00023314,2]
[355418630,1741128633481,-500.0,0.00023314,2]
[355418632,1741128633490,-500.0,0.00023314,2]
[355418634,1741128633500,-3006.0,0.00023316,2]
[355418636,1741128633510,-3006.0,0.00023316,2]
[355418638,1741128633520,-3006.0,0.00023316,2]
[355418640,1741128633530,-3006.0,0.00023316,2]
[355418642,1741128633540,-3006.0,0.00023316,2]
[355418644,1741128633551,-3006.0,0.00023316,2]
[355418646,1741128633560,-3006.0,0.00023316,2]
[355418648,1741128633571,-3006.0,0.00023316,2]
[355418650,1741128633581,-3006.0,0.00023316,2]
[355418652,1741128633591,-3006.0,0.00023316,2]
[355418654,1741128633600,-2259.22372045,0.00023316,2]
[355418656,1741128633611,-151.0,0.00023319,2]
[355418658,1741128633620,-218.81,0.00023327,2]
[355418660,1741128633630,-214.08729057,0.00023332,2]
[355418662,1741128633639,-500.0,0.00023332,2]
[355418664,1741128633649,-500.0,0.00023332,2]
[355418666,1741128633659,-402.72721179,0.00023332,2]
[355418668,1741128633670,-500.0,0.00023332,2]
[355418669,1741128633684,-500.0,0.00023332,2]
[355418672,1741128633695,-500.0,0.00023332,2]
[355418673,1741128633704,-293.74198821,0.00023332,2]
[355418676,1741128633714,-500.0,0.00023332,2]
[355418677,1741128633724,-151.0,0.00023333,7]
[355418680,1741128633734,-217.571404,0.00023333,7]
[355418682,1741128633744,-151.0,0.00023333,7]
[355418684,1741128633754,-217.571404,0.00023333,7]
[355418686,1741128633764,-151.0,0.00023333,7]
[355418688,1741128633773,-151.0,0.00023333,7]
[355418690,1741128633783,-151.0,0.00023333,7]
[355418692,1741128633793,-1737.596689,0.00023333,7]
[355418694,1741128633803,-1737.596689,0.00023333,7]
[355418696,1741128633813,-223.18988,0.00023333,7]
[355418698,1741128633823,-151.0,0.00023333,7]
[355418700,1741128633833,-151.0,0.00023333,7]
[355418702,1741128633843,-151.0,0.00023333,7]
[355418704,1741128633852,-151.0,0.00023333,7]
[355418706,1741128633862,-151.0,0.00023333,7]
[355418708,1741128633871,-150.0,0.00023333,2]
[355418709,1741128633881,-151.0,0.00023333,7]
[355418711,1741128633892,-388.585071,0.00023333,7]
[355418714,1741128633902,-2939.955449,0.00023333,7]
[355418716,1741128633914,-388.585071,0.00023333,7]
[355418718,1741128633923,-151.0,0.00023333,7]
[355418720,1741128633933,-151.0,0.00023333,7]
[355418722,1741128633942,-151.0,0.00023333,7]
[355418724,1741128633952,-187.13194,0.00023333,7]
[355418726,1741128633961,-187.13194,0.00023333,7]
[355418728,1741128633970,-297.38751,0.00023333,7]
[355418730,1741128633980,-151.0,0.00023333,7]
[355418732,1741128633990,-151.0,0.00023333,7]
[355418734,1741128634000,-151.0,0.00023333,7]
[355418736,1741128634009,-151.0,0.00023333,7]
[355418737,1741128634018,-151.0,0.00023333,7]
[355418739,1741128634028,-566.760929,0.00023333,7]
[355418741,1741128634038,-566.760929,0.00023333,7]
[355418744,1741128634048,-795.103085,0.00023333,7]
[355418746,1741128634058,-795.103085,0.00023333,7]
[355418748,1741128634068,-158.273612,0.00023333,7]
[355418750,1741128634078,-158.273612,0.00023333,7]
[355418752,1741128634087,-158.273612,0.00023333,7]
[355418754,1741128634096,-158.273612,0.00023333,7]
[355418756,1741128634105,-151.0,0.00023333,7]
[355418758,1741128634115,-151.0,0.00023333,7]
[355418760,1741128634124,-151.0,0.00023333,7]
[355418762,1741128634133,-260.920862,0.00023333,7]
[355418764,1741128634144,-233.769368,0.00023333,7]
[355418766,1741128634160,-233.769368,0.00023333,7]
[355418768,1741128634170,-233.769368,0.00023333,7]
[355418770,1741128634179,-233.769368,0.00023333,7]
[355418772,1741128634189,-281.814888,0.00023333,7]
[355418774,1741128634199,-281.814888,0.00023333,7]
[355418776,1741128634208,-281.814888,0.00023333,7]
[355418778,1741128634218,-281.814888,0.00023333,7]
[355418780,1741128634227,-2590.04735337,0.00023333,5]
[355418782,1741128634236,-22448.66093886,0.00023333,5]
[355418784,1741128634246,-273433.21277591,0.00023333,2]
[355418786,1741128634255,-254.32962293,0.00023373,2]
[355418788,1741128634265,-500.0,0.00023373,2]
[355418790,1741128634274,-500.0,0.00023373,2]
[355418792,1741128634283,-500.0,0.00023373,2]
[355418793,1741128634293,-263.60056898,0.00023373,2]
[355418794,1741128634303,-472.98109596,0.00023373,2]
[355418795,1741128634313,-500.0,0.00023373,2]
[355418796,1741128634323,-500.0,0.00023373,2]
[355418797,1741128634333,-500.0,0.00023373,2]
[355418798,1741128634343,-510.7482663,0.00023373,2]
[355418799,1741128634353,-500.0,0.00023373,2]
[355418800,1741128634363,-160.4535733,0.00023373,2]
[355418801,1741128634373,-500.10605809,0.00023373,2]
[355418802,1741128634383,-500.0,0.00023373,2]
[355418803,1741128634393,-500.14574738,0.00023373,2]
[355418804,1741128634403,-500.0,0.00023373,2]
[355418805,1741128634414,-500.0,0.00023373,2]
[355418806,1741128634425,-500.0,0.00023373,2]
[355418807,1741128634435,-500.0,0.00023373,2]
[355418808,1741128634445,-427.6514635,0.00023373,2]
[355418809,1741128634454,-500.0,0.00023373,2]
[355418810,1741128634464,-481.93458295,0.00023373,2]
[355418811,1741128634474,-500.0,0.00023373,2]
[355418812,1741128634484,-500.0,0.00023373,2]
[355418813,1741128634493,-500.0,0.00023373,2]
[355418814,1741128634503,-500.0,0.00023373,2]
[355418815,1741128634513,-501.6128383,0.00023373,2]
[355418816,1741128634522,-201.44196182,0.00023373,2]
[355418817,1741128634532,-453.65488435,0.00023373,2]
[355418818,1741128634541,-500.0,0.00023373,2]
[355418819,1741128634550,-500.0,0.00023373,2]
[355418820,1741128634560,-500.0,0.00023373,2]
[355418821,1741128634570,-206.20291518,0.00023373,2]
[355418822,1741128634580,-277.4606212,0.00023373,2]
[355418823,1741128634589,-500.0,0.00023373,2]
[355418824,1741128634599,-327.68473679,0.00023373,2]
[355418825,1741128634608,-500.0,0.00023373,2]
[355418826,1741128634618,-426.52,0.000234,7]
[355418827,1741128634629,-1000.0,0.000235,2]
[355418828,1741128634638,-163.08,0.00023867,2]
[355418829,1741128634648,-849.0000001,0.00023868,2]
[355418830,1741128634658,-500.0,0.00023921,2]
[355418831,1741128634669,-500.0,0.00023926,2]
[355418832,1741128634685,-465.0207984,0.00023978,2]
[355418833,1741128634695,-1273.65791265,0.00024133,2]
[355418834,1741128634704,-151.0,0.000243,7]
[355418835,1741128634715,-151.0,0.000244,7]
[355418836,1741128634724,-176.1264,0.00024415,2]
[355418837,1741128634734,-865.54289562,0.00024574,2]
[355418838,1741128634744,-151.0,0.000246,7]
[355418839,1741128634755,-151.0,0.000246,10]
[355418840,1741128634766,-380.0,0.00024658,2]
[355418841,1741128634775,-151.0,0.00024658,7]
[355418842,1741128634784,-151.0,0.00024658,7]
[355418843,1741128634794,-303.288429,0.00024658,7]
[355418844,1741128634804,-303.288429,0.00024658,7]
[355418845,1741128634813,-151.0,0.00024658,7]
[355418846,1741128634823,-212.743792,0.00024658,7]
[355418847,1741128634832,-212.743792,0.00024658,7]
[355418848,1741128634842,-151.0,0.00024658,7]
[355418849,1741128634851,-151.0,0.00024658,7]
[355418850,1741128634860,-830.293237,0.00024658,7]
[355418851,1741128634870,-830.293237,0.00024658,7]
[355418852,1741128634879,-728.30082,0.00024658,7]
[355418853,1741128634889,-728.30082,0.00024658,7]
[355418854,1741128634899,-151.0,0.00024658,7]
[355418855,1741128634908,-151.0,0.00024658,7]
[355418856,1741128634918,-217.571404,0.00024658,7]
[355418857,1741128634927,-151.0,0.00024658,7]
[355418858,1741128634937,-217.571404,0.00024658,7]
[355418859,1741128634946,-151.0,0.00024658,7]
[355418860,1741128634956,-151.0,0.00024658,7]
[355418861,1741128634966,-151.0,0.00024658,7]
[355418862,1741128634975,-1737.596689,0.00024658,7]
[355418863,1741128634985,-1737.596689,0.00024658,7]
[355418864,1741128634995,-151.0,0.00024658,7]
[355418865,1741128635004,-151.0,0.00024658,7]
[355418866,1741128635013,-151.0,0.00024658,7]
[355418867,1741128635023,-151.0,0.00024658,7]
[355418868,1741128635032,-151.0,0.00024658,7]
[355418869,1741128635042,-151.0,0.00024658,7]
[355418870,1741128635051,-388.585071,0.00024658,7]
[355418871,1741128635061,-2939.955449,0.00024658,7]
[355418872,1741128635070,-388.585071,0.00024658,7]
[355418873,1741128635079,-151.0,0.00024658,7]
[355418874,1741128635089,-187.13194,0.00024658,7]
[355418875,1741128635098,-151.0,0.00024658,7]
[355418876,1741128635108,-187.13194,0.00024658,7]
[355418877,1741128635117,-151.0,0.00024658,7]
[355418878,1741128635126,-151.0,0.00024658,7]
[355418879,1741128635270,-177.918737,0.00024658,7]
[355418880,1741128635280,-151.0,0.00024658,7]
[355418881,1741128635289,-566.760929,0.00024658,7]
[355418882,1741128635299,-566.760929,0.00024658,7]
[355418883,1741128635308,-795.103085,0.00024658,7]
[355418884,1741128635318,-795.103085,0.00024658,7]
[355418885,1741128635327,-158.273612,0.00024658,7]
[355418886,1741128635337,-158.273612,0.00024658,7]
[355418887,1741128635347,-151.0,0.00024658,7]
[355418888,1741128635356,-233.769368,0.00024658,7]
[355418889,1741128635366,-233.769368,0.00024658,7]
[355418890,1741128635376,-281.814888,0.00024658,7]
[355418891,1741128635385,-281.814888,0.00024658,7]
[355418892,1741128635396,-500.0,0.00024658,2]
[355418893,1741128635405,-500.0,0.00024658,2]
[355418894,1741128635415,-500.0,0.00024658,2]
[355418895,1741128635425,-500.0,0.00024658,2]
[355418896,1741128635434,-151.0,0.00024673,7]
[355418897,1741128635443,-233.769368,0.00024673,7]
[355418898,1741128635453,-233.769368,0.00024673,7]
[355418899,1741128635463,-218.81,0.00024696,2]
[355418900,1741128635472,-151.0,0.000247,10]
[355418901,1741128635483,-151.0,0.000247,7]
[355418902,1741128635493,-500.0,0.00024773,2]
[355418903,1741128635502,-500.0,0.00024773,2]
[355418904,1741128635512,-500.0,0.00024773,2]
[355418905,1741128635523,-500.0,0.00024773,2]
[355418906,1741128635533,-500.0,0.00024773,2]
[355418907,1741128635543,-599.90640786,0.00024773,2]
[355418908,1741128635552,-500.0,0.00024773,2]
[355418909,1741128635562,-500.94908092,0.00024773,2]
[355418910,1741128635572,-500.0,0.00024773,2]
[355418911,1741128635581,-500.0,0.00024773,2]
[355418912,1741128635591,-500.0,0.00024773,2]
[355418913,1741128635600,-500.0,0.00024773,2]
[355418914,1741128635610,-500.0,0.00024773,2]
[355418915,1741128635620,-500.49521099,0.00024773,2]
[355418916,1741128635629,-500.05116117,0.00024773,2]
[355418917,1741128635639,-500.0,0.00024773,2]
[355418918,1741128635650,-500.0,0.00024773,2]
[355418919,1741128635659,-500.0,0.00024773,2]
[355418920,1741128635670,-498.91839271,0.00024773,2]
[355418921,1741128635683,-500.0,0.00024773,2]
[355418922,1741128635692,-500.0,0.00024773,2]
[355418923,1741128635702,-500.0,0.00024773,2]
[355418924,1741128635712,-500.0,0.00024773,2]
[355418925,1741128635722,-500.0,0.00024773,2]
[355418926,1741128635732,-342.36243303,0.00024773,2]
[355418927,1741128635742,-395.46845043,0.00024773,2]
[355418928,1741128635754,-500.0,0.00024773,2]
[355418929,1741128635765,-502.53056512,0.00024773,2]
[355418930,1741128635775,-500.0,0.00024773,2]
[355418931,1741128635784,-500.0,0.00024773,2]
[355418932,1741128635794,-443.364172,0.00024773,2]
[355418933,1741128635804,-500.0,0.00024773,2]
[355418934,1741128635814,-500.0,0.00024773,2]
[355418935,1741128635823,-500.0,0.00024773,2]
[355418936,1741128635833,-500.0,0.00024773,2]
[355418937,1741128635843,-500.04267634,0.00024773,2]
[355418938,1741128635852,-198.50126215,0.00024773,2]
[355418939,1741128635862,-500.0,0.00024773,2]
[355418940,1741128635872,-500.0,0.00024773,2]
[355418941,1741128635882,-500.0,0.00024773,2]
[355418942,1741128635892,-151.0,0.000248,7]
[355418943,1741128635902,-205.416516,0.000248,7]
[355418944,1741128635911,-335.481467,0.000248,7]
[355418945,1741128635921,-335.481467,0.000248,7]
[355418946,1741128635931,-151.0,0.000248,7]
[355418947,1741128635941,-236.504785,0.000248,7]
[355418948,1741128635950,-236.504785,0.000248,7]
[355418949,1741128635960,-151.0,0.000248,7]
[355418950,1741128635971,-151.0,0.000248,7]
[355418951,1741128635981,-303.288429,0.000248,7]
[355418952,1741128635991,-303.288429,0.000248,7]
[355418953,1741128636000,-151.0,0.000248,7]
[355418954,1741128636010,-212.743792,0.000248,7]
[355418955,1741128636019,-212.743792,0.000248,7]
[355418956,1741128636029,-151.0,0.000248,7]
[355418957,1741128636038,-412.155898,0.000248,7]
[355418958,1741128636048,-412.155898,0.000248,7]
[355418959,1741128636058,-412.155898,0.000248,7]
[355418960,1741128636068,-412.155898,0.000248,7]
[355418961,1741128636077,-151.0,0.000248,7]
[355418962,1741128636087,-830.293237,0.000248,7]
[355418963,1741128636096,-830.293237,0.000248,7]
[355418964,1741128636105,-728.30082,0.000248,7]
[355418965,1741128636115,-728.30082,0.000248,7]
[355418966,1741128636124,-151.0,0.000248,7]
[355418967,1741128636133,-151.0,0.000248,7]
[355418968,1741128636143,-217.571404,0.000248,7]
[355418969,1741128636153,-151.0,0.000248,7]
[355418970,1741128636162,-217.571404,0.000248,7]
[355418971,1741128636171,-151.0,0.000248,7]
[355418972,1741128636180,-151.0,0.000248,7]
[355418973,1741128636190,-151.0,0.000248,7]
[355418974,1741128636200,-1737.596689,0.000248,7]
[355418975,1741128636209,-1737.596689,0.000248,7]
[355418976,1741128636219,-151.0,0.000248,7]
[355418977,1741128636228,-151.0,0.000248,7]
[355418978,1741128636238,-151.0,0.000248,7]
[355418979,1741128636249,-151.0,0.000248,7]
[355418980,1741128636259,-151.0,0.000248,7]
[355418981,1741128636268,-238.25707,0.000248,7]
[355418982,1741128636278,-388.585071,0.000248,7]
[355418983,1741128636287,-2939.955449,0.000248,7]
[355418984,1741128636299,-388.585071,0.000248,7]
[355418985,1741128636310,-151.91312,0.000248,7]
[355418986,1741128636320,-187.13194,0.000248,7]
[355418987,1741128636330,-151.0,0.000248,7]
[355418988,1741128636340,-187.13194,0.000248,7]
[355418989,1741128636349,-151.0,0.000248,7]
[355418990,1741128636359,-566.760929,0.000248,7]
[355418991,1741128636368,-566.760929,0.000248,7]
[355418992,1741128636377,-566.760929,0.000248,7]
[355418993,1741128636387,-566.760929,0.000248,7]
[355418994,1741128636397,-795.103085,0.000248,7]
[355418995,1741128636407,-795.103085,0.000248,7]
[355418996,1741128636416,-795.103085,0.000248,7]
[355418997,1741128636426,-795.103085,0.000248,7]
[355418998,1741128636435,-158.273612,0.000248,7]
[355418999,1741128636445,-158.273612,0.000248,7]
[355419000,1741128636454,-143879.873615,0.000248,2]
[355419001,1741128636464,-281.814888,0.000248,7]
[355419002,1741128636474,-500.0,0.00024873,2]
[355419003,1741128636483,-150.0,0.00024873,2]
[355419004,1741128636494,-11989.9894679,0.0002488,2]
[355419005,1741128636503,-1117.71801314,0.00024889,2]
[355419006,1741128636513,-151.2094033,0.00024889,2]
[355419007,1741128636523,-153.863537,0.0002489,7]